bitfinex/quotes_BTCUSD_20250523
["timestamp","ask_amount","ask_price","bid_price","bid_amount"]
[1747982676962,0.25489321,110560.0,110550.0,2.52673124]
[1747982677167,0.25489321,110560.0,110550.0,2.53577667]
[1747982678090,0.24584835,110560.0,110550.0,2.51768573]
[1747982684476,0.24584835,110560.0,110550.0,2.32772653]
[1747982684704,0.24584835,110560.0,110550.0,2.31868085]
[1747982684928,0.24584835,110560.0,110550.0,2.30414]
[1747982685405,0.24584835,110560.0,110550.0,2.03314]
[1747982685624,0.24584835,110560.0,110550.0,2.30414]
[1747982685833,0.33539391,110560.0,110550.0,2.30218]
[1747982688025,0.33539391,110560.0,110550.0,1.1206]
[1747982688146,0.33539391,110560.0,110550.0,1.3916]
[1747982704763,0.33539391,110560.0,110550.0,1.1206]
[1747982704964,0.33539391,110560.0,110550.0,1.39164]
[1747982705420,0.33539391,110560.0,110550.0,1.1206]
[1747982705621,0.33539391,110560.0,110550.0,1.05164]
[1747982705622,0.34621238,110560.0,110550.0,1.05164]
[1747982705828,0.33539391,110560.0,110550.0,1.05164]
[1747982706039,0.33539391,110560.0,110550.0,1.39164]
[1747982707193,0.33639391,110560.0,110550.0,1.39164]
[1747982707729,0.33739391,110560.0,110550.0,1.39264]
[1747982711789,0.33739391,110560.0,110550.0,0.73124]
[1747982711990,0.33739391,110560.0,110550.0,1.39076]
[1747982719387,0.33739391,110560.0,110550.0,1.39072]
[1747982729197,0.33739391,110560.0,110550.0,0.73124]
[1747982729436,0.33739391,110560.0,110550.0,1.39068]
[1747982730678,0.33739391,110560.0,110550.0,0.73124]
[1747982730887,0.33739391,110560.0,110550.0,1.39068]
[1747982731107,0.33739391,110560.0,110550.0,0.73124]
[1747982731358,0.33739391,110560.0,110550.0,1.39068]
[1747982735134,0.33739391,110560.0,110550.0,0.73124]
[1747982735329,0.33739391,110560.0,110550.0,1.39076]
[1747982737251,0.33739391,110560.0,110550.0,1.11968]
[1747982737429,0.33739391,110560.0,110550.0,1.39076]
[1747982737860,0.71557953,110560.0,110550.0,0.39124]
[1747982738090,0.72557953,110560.0,110550.0,0.27208]
[1747982738297,0.72557953,110560.0,110550.0,0.001]
[1747982738298,0.7735724,110560.0,110550.0,0.001]
[1747982738509,0.60372334,110560.0,110550.0,0.001]
[1747982738927,0.59740132,110560.0,110550.0,0.001]
[1747982739139,0.59640132,110560.0,110550.0,0.001]
[1747982739378,0.59840132,110560.0,110550.0,0.001]
[1747982739794,0.61240132,110560.0,110550.0,0.002]
[1747982740006,0.61872334,110560.0,110550.0,0.002]
[1747982741944,0.61872334,110560.0,110520.0,0.72868]
[1747982741945,0.26084039,110530.0,110520.0,0.38868]
[1747982742175,0.35038595,110530.0,110520.0,0.00204]
[1747982742398,0.52023501,110530.0,110520.0,0.00204]
[1747982742619,0.53023501,110530.0,110520.0,0.00204]
[1747982742844,0.55477586,110530.0,110520.0,0.00204]
[1747982743064,0.64429737,110530.0,110520.0,0.00204]
[1747982743289,0.26357642,110510.0,110500.0,0.00204]
[1747982743500,0.52297104,110510.0,110500.0,0.00204]
[1747982743722,0.52197104,110510.0,110500.0,0.00204]
[1747982743941,0.61125069,110510.0,110500.0,0.00204]
[1747982744170,0.61025069,110510.0,110500.0,0.00204]
[1747982744636,0.01,110500.0,110480.0,4e-05]
[1747982744852,0.52260707,110490.0,110480.0,0.00019341]
[1747982745065,0.61095359,110490.0,110480.0,0.00019341]
[1747982745290,0.61095359,110490.0,110470.0,4e-05]
[1747982745291,0.1992026,110440.0,110430.0,0.3904]
[1747982745511,0.1992026,110440.0,110430.0,1.95882]
[1747982745747,0.1992026,110440.0,110430.0,0.78569045]
[1747982745965,0.28874816,110440.0,110430.0,1.05681045]
[1747982746196,0.28774816,110440.0,110430.0,1.05681045]
[1747982746420,0.28774816,110440.0,110430.0,1.39681045]
[1747982746633,0.28774816,110440.0,110430.0,1.05681045]
[1747982747263,0.35524816,110440.0,110430.0,1.12769045]
[1747982747476,0.35524816,110440.0,110430.0,1.39885045]
[1747982747695,0.35524816,110440.0,110430.0,1.05885045]
[1747982747931,0.35624816,110440.0,110430.0,0.78769045]
[1747982748151,0.35624816,110440.0,110430.0,1.12769045]
[1747982748400,0.35624816,110440.0,110430.0,0.01057045]
[1747982748630,0.6147428,110440.0,110430.0,0.00857045]
[1747982748851,0.6147428,110440.0,110430.0,0.00015344]
[1747982749066,0.6157428,110440.0,110430.0,0.00015344]
[1747982749318,0.6157428,110440.0,110410.0,4e-05]
[1747982749319,0.19923868,110420.0,110410.0,4e-05]
[1747982749554,0.35208424,110420.0,110410.0,0.00017855]
[1747982750711,0.35308424,110420.0,110410.0,0.27141855]
[1747982750916,0.35308424,110420.0,110410.0,0.61141855]
[1747982751340,0.32008424,110420.0,110410.0,0.34017855]
[1747982751553,0.28978424,110420.0,110410.0,0.99829855]
[1747982751762,0.29078424,110420.0,110410.0,0.99929855]
[1747982752140,0.28878424,110420.0,110410.0,0.99829855]
[1747982752432,0.29278424,110420.0,110410.0,0.99829855]
[1747982752641,0.35638424,110420.0,110410.0,0.99829855]
[1747982753258,0.35438424,110420.0,110410.0,0.99829855]
[1747982753476,0.35538424,110420.0,110410.0,0.99829855]
[1747982753998,0.35538424,110420.0,110410.0,0.72705855]
[1747982754201,0.35538424,110420.0,110410.0,0.99833855]
[1747982754856,0.35538424,110420.0,110410.0,0.72705855]
[1747982755190,0.35538424,110420.0,110410.0,0.99833855]
[1747982758444,0.29178424,110420.0,110410.0,1.52203855]
[1747982758643,0.20223868,110420.0,110410.0,1.94161855]
[1747982758843,0.20223868,110420.0,110410.0,1.31435855]
[1747982759042,0.20223868,110420.0,110410.0,1.97275855]
[1747982759249,0.20123868,110420.0,110410.0,1.00467855]
[1747982759478,0.20123868,110420.0,110410.0,1.27642171]
[1747982759700,0.20223868,110420.0,110410.0,1.27742171]
[1747982759905,0.19923868,110420.0,110410.0,1.27642171]
[1747982760152,0.20023868,110420.0,110410.0,1.24302171]
[1747982760355,0.20023868,110420.0,110410.0,1.90915855]
[1747982760502,0.20023868,110420.0,110410.0,0.72721855]
[1747982760706,0.20023868,110420.0,110410.0,0.99857855]
[1747982761271,0.20023868,110420.0,110410.0,1.00057855]
[1747982761564,0.20023868,110420.0,110410.0,1.25275855]
[1747982761753,0.20123868,110420.0,110410.0,1.91115855]
[1747982762298,0.20123868,110420.0,110410.0,1.91950843]
[1747982762499,0.20123868,110420.0,110410.0,1.98180843]
[1747982762798,0.20123868,110420.0,110410.0,1.64814843]
[1747982762799,0.19218276,110420.0,110410.0,1.64814843]
[1747982763012,0.19218276,110420.0,110410.0,1.91950843]
[1747982763454,0.19218276,110420.0,110410.0,0.94126843]
[1747982763663,0.19218276,110420.0,110410.0,1.39964843]
[1747982763664,0.34412832,110420.0,110410.0,1.39964843]
[1747982764067,0.34412832,110420.0,110410.0,1.05964843]
[1747982764612,0.34412832,110420.0,110410.0,0.74124843]
[1747982764840,0.34412832,110420.0,110410.0,1.39968843]
[1747982765241,0.34412832,110420.0,110410.0,0.73289855]
[1747982765423,0.34412832,110420.0,110410.0,1.39133855]
[1747982767081,0.34412832,110420.0,110410.0,1.39971792]
[1747982767212,0.34412832,110420.0,110410.0,1.05757937]
[1747982768661,0.34412832,110420.0,110410.0,1.05601937]
[1747982768864,0.33507216,110420.0,110410.0,1.05601937]
[1747982769263,0.33507216,110420.0,110410.0,1.39601937]
[1747982770074,0.27267216,110420.0,110410.0,1.39601937]
[1747982771850,0.27267216,110420.0,110410.0,2.30659937]
[1747982772070,0.1831266,110420.0,110410.0,2.30659937]
[1747982772314,0.002,110420.0,110410.0,2.30659937]
[1747982777169,0.002,110420.0,110410.0,2.33669937]
[1747982778137,0.002,110420.0,110410.0,2.32832]
[1747982781957,0.002,110420.0,110410.0,2.32836]
[1747982783007,0.002,110420.0,110410.0,1.93648]
[1747982783218,0.1831266,110420.0,110410.0,2.00548]
[1747982785030,0.1831266,110420.0,110410.0,1.34856]
[1747982785254,0.1831266,110420.0,110410.0,2.00548]
[1747982785462,0.1831266,110420.0,110410.0,1.69538]
[1747982785587,0.1831266,110420.0,110410.0,1.96678]
[1747982785787,0.1831266,110420.0,110410.0,1.30986]
[1747982785980,0.1831266,110420.0,110410.0,1.96678]
[1747982792114,0.002,110420.0,110410.0,1.96678]
[1747982794039,0.002,110420.0,110410.0,1.30986]
[1747982794245,0.002,110420.0,110410.0,1.96674]
[1747982802589,0.064,110420.0,110410.0,1.11628]
[1747982802794,0.15354556,110420.0,110410.0,1.38764]
[1747982804565,0.15354556,110420.0,110410.0,0.73076]
[1747982804770,0.15354556,110420.0,110410.0,1.38636]
[1747982810599,0.15354556,110420.0,110410.0,0.6556]
[1747982812472,0.15354556,110420.0,110360.0,0.03500422]
[1747982812710,0.0627,110410.0,110390.0,5.117e-05]
[1747982812940,0.0627,110410.0,110400.0,0.91058]
[1747982813352,0.0627,110410.0,110400.0,1.25058]
[1747982813551,0.0627,110410.0,110400.0,1.52198]
[1747982813958,0.0637,110410.0,110400.0,1.52198]
[1747982815146,0.0637,110410.0,110400.0,1.90618]
[1747982815351,0.0627,110410.0,110400.0,1.90618]
[1747982815614,0.0647,110410.0,110400.0,1.90918]
[1747982818700,0.0647,110410.0,110400.0,1.90922]
[1747982820204,0.24584301,110410.0,110400.0,1.90922]
[1747982825029,0.24584301,110410.0,110400.0,1.63782]
[1747982825238,0.33538857,110410.0,110400.0,0.59954]
[1747982825455,0.33538857,110410.0,110400.0,0.38724]
[1747982825870,0.33538857,110410.0,110400.0,0.65864]
[1747982826551,0.33438857,110410.0,110400.0,0.65664]
[1747982826790,0.33438857,110410.0,110400.0,0.99664]
[1747982826996,0.33438857,110410.0,110400.0,0.99764]
[1747982827424,0.33338857,110410.0,110400.0,0.99664]
[1747982827624,0.33438857,110410.0,110400.0,0.99764]
[1747982828059,0.33438857,110410.0,110400.0,0.38624]
[1747982829120,0.33438857,110410.0,110400.0,0.65764]
[1747982831204,0.33438857,110410.0,110400.0,0.002]
[1747982831443,0.33438857,110410.0,110400.0,0.65644]
[1747982831636,0.20836983,110380.0,110370.0,0.0206]
[1747982831842,0.21742944,110380.0,110370.0,0.93395688]
[1747982832041,0.20837049,110380.0,110370.0,0.93169221]
[1747982832801,0.20837049,110380.0,110370.0,1.20313221]
[1747982833009,0.20937049,110380.0,110370.0,1.20713221]
[1747982833430,0.20031129,110380.0,110370.0,1.20713221]
[1747982833641,0.20131129,110380.0,110370.0,1.20713221]
[1747982834470,0.19225168,110380.0,110370.0,1.20713221]
[1747982834683,0.21037049,110380.0,110370.0,1.20713221]
[1747982835254,0.21037049,110380.0,110370.0,1.98101221]
[1747982835463,0.20437049,110380.0,110370.0,2.32101221]
[1747982837199,0.19531129,110380.0,110370.0,2.32101221]
[1747982837411,0.18625185,110380.0,110370.0,2.30041221]
[1747982838755,0.17719224,110380.0,110370.0,2.31631221]
[1747982840131,0.17719224,110380.0,110370.0,2.02897221]
[1747982840393,0.17719224,110380.0,110370.0,2.30041221]
[1747982840833,0.23959224,110380.0,110370.0,2.30041221]
[1747982843784,0.23359224,110380.0,110370.0,2.30041221]
[1747982844170,0.23259224,110380.0,110370.0,2.30041221]
[1747982844378,0.23359224,110380.0,110370.0,2.30041221]
[1747982845323,0.23259224,110380.0,110370.0,2.29641221]
[1747982845911,0.23359224,110380.0,110370.0,2.29841221]
[1747982847519,0.23359224,110380.0,110370.0,2.02697221]
[1747982848144,0.23359224,110380.0,110370.0,2.29841221]
[1747982848566,0.23359224,110380.0,110370.0,2.3068753]
[1747982849463,0.23359224,110380.0,110370.0,2.29841221]
[1747982851259,0.23359224,110380.0,110370.0,2.29845221]
[1747982851468,0.22759224,110380.0,110370.0,2.29845221]
[1747982853755,0.23665177,110380.0,110370.0,2.29845221]
[1747982853965,0.19237066,110380.0,110370.0,2.29845221]
[1747982854170,0.24891138,110380.0,110370.0,2.29845221]
[1747982855148,0.24891138,110380.0,110370.0,2.30693132]
[1747982855339,0.24891138,110380.0,110370.0,2.03549132]
[1747982855538,0.24891138,110380.0,110370.0,2.30697132]
[1747982856637,0.24891138,110380.0,110370.0,2.29849221]
[1747982856898,0.24791138,110380.0,110370.0,2.29849221]
[1747982857107,0.24791138,110380.0,110370.0,2.29649221]
[1747982857541,0.24891138,110380.0,110370.0,2.29849221]
[1747982859833,0.24891138,110380.0,110370.0,2.02701221]
[1747982860045,0.24891138,110380.0,110370.0,2.29849221]
[1747982867244,0.24891138,110380.0,110370.0,2.02701221]
[1747982867356,0.24891138,110380.0,110370.0,2.29849221]
[1747982870401,0.24891138,110380.0,110370.0,2.29741221]
[1747982870949,0.24891138,110380.0,110370.0,2.08694021]
[1747982871078,0.24891138,110380.0,110370.0,1.38683221]
[1747982871280,0.24891138,110380.0,110370.0,2.08694021]
[1747982874666,0.24891138,110380.0,110370.0,1.43346021]
[1747982874864,0.24891138,110380.0,110370.0,2.08694021]
[1747982879664,0.24325138,110380.0,110370.0,2.08694021]
[1747982879864,0.23475138,110380.0,110370.0,2.08694021]
[1747982880237,0.23475138,110380.0,110370.0,0.73335221]
[1747982880452,0.23475138,110380.0,110370.0,1.38683221]
[1747982880871,0.23475138,110380.0,110370.0,0.78383232]
[1747982881075,0.23475138,110380.0,110370.0,1.05531232]
[1747982881303,0.32429694,110380.0,110370.0,0.40183232]
[1747982881510,0.32429694,110380.0,110370.0,1.39535232]
[1747982881903,0.32429694,110380.0,110370.0,0.74183232]
[1747982882110,0.32329694,110380.0,110370.0,1.39535232]
[1747982882283,0.32229694,110380.0,110370.0,1.39335232]
[1747982882481,0.32229694,110380.0,110370.0,1.39435232]
[1747982882482,0.32329694,110380.0,110370.0,1.39435232]
[1747982882714,0.32429694,110380.0,110370.0,1.39435232]
[1747982884780,0.32429694,110380.0,110370.0,1.38587221]
[1747982886456,0.32429694,110380.0,110370.0,1.39434436]
[1747982892216,0.36995713,110380.0,110370.0,1.39434436]
[1747982892446,0.32429694,110380.0,110370.0,1.39434436]
[1747982892664,0.32429694,110380.0,110370.0,0.74082436]
[1747982892987,0.32429694,110380.0,110370.0,1.39342436]
[1747982894913,0.32429694,110380.0,110370.0,1.38495221]
[1747982896309,0.32429694,110380.0,110370.0,1.13155647]
[1747982897321,0.32429694,110380.0,110370.0,1.13159647]
[1747982900738,0.32429694,110380.0,110370.0,0.86011647]
[1747982900915,0.32429694,110380.0,110370.0,1.14010272]
[1747982901568,0.32429694,110380.0,110370.0,0.86858272]
[1747982901791,0.32429694,110380.0,110370.0,1.14010272]
[1747982903898,0.32429694,110380.0,110370.0,0.48742272]
[1747982904073,0.32429694,110380.0,110370.0,1.14010272]
[1747982905013,0.32429694,110380.0,110370.0,0.48742272]
[1747982905210,0.32429694,110380.0,110370.0,1.14010272]
[1747982907237,0.32429694,110380.0,110370.0,1.13163647]
[1747982908086,0.32429694,110380.0,110370.0,0.47895647]
[1747982908290,0.32429694,110380.0,110370.0,1.13163647]
[1747982911154,0.32329694,110380.0,110370.0,0.99368]
[1747982911406,0.32629694,110380.0,110370.0,0.99368]
[1747982911608,0.3770456,110380.0,110370.0,0.341]
[1747982911819,0.3770456,110380.0,110370.0,0.61252]
[1747982912596,0.32629694,110380.0,110370.0,0.61252]
[1747982913634,0.32629694,110380.0,110370.0,0.341]
[1747982913858,0.32629694,110380.0,110370.0,0.61252]
[1747982916971,0.32629694,110380.0,110370.0,0.27252]
[1747982922489,0.32629694,110380.0,110370.0,0.27256]
[1747982923954,0.32629694,110380.0,110370.0,0.001]
[1747982924155,0.32629694,110380.0,110370.0,0.27256]
[1747982925654,0.32629694,110380.0,110370.0,0.001]
[1747982925857,0.32629694,110380.0,110370.0,0.27256]
[1747982927140,0.32329694,110380.0,110370.0,0.27256]
[1747982927358,0.32929694,110380.0,110370.0,0.27256]
[1747982928939,0.32929694,110380.0,110370.0,0.2726]
[1747982929143,0.32929694,110380.0,110370.0,0.00104]
[1747982929416,0.32929694,110380.0,110370.0,0.2726]
[1747982931536,0.3813456,110380.0,110370.0,0.2726]
[1747982931741,0.32929694,110380.0,110370.0,0.2726]
[1747982938670,0.32829694,110380.0,110370.0,0.2716]
[1747982939074,0.33329694,110380.0,110370.0,0.2716]
[1747982942257,0.33329694,110380.0,110370.0,4e-05]
[1747982950276,0.33329694,110380.0,110340.0,4e-05]
[1747982950277,0.00906191,110350.0,110340.0,4e-05]
[1747982950497,0.34094897,110350.0,110340.0,0.27165119]
[1747982950694,0.34094897,110350.0,110340.0,0.28013492]
[1747982950904,0.34094897,110350.0,110340.0,0.00857492]
[1747982951109,0.34094897,110350.0,110340.0,0.28013492]
[1747982951594,0.34094897,110350.0,110340.0,0.00857492]
[1747982951719,0.34194897,110350.0,110340.0,0.28013492]
[1747982951923,0.34094897,110350.0,110340.0,0.28013492]
[1747982952155,0.35094897,110350.0,110340.0,0.00857492]
[1747982952361,0.37812997,110350.0,110340.0,0.00857492]
[1747982952590,0.37912997,110350.0,110340.0,0.00857492]
[1747982952825,0.37212997,110350.0,110340.0,0.00857492]
[1747982953042,0.38112997,110350.0,110340.0,0.00857492]
[1747982953265,0.38512997,110350.0,110340.0,0.00857492]
[1747982953490,0.37512997,110350.0,110340.0,0.00857492]
[1747982953714,0.37512997,110350.0,110340.0,9.119e-05]
[1747982954805,0.68794897,110350.0,110340.0,9.119e-05]
[1747982956704,0.34794897,110350.0,110340.0,9.119e-05]
[1747982957169,0.36166918,110350.0,110340.0,9.119e-05]
[1747982959504,0.35766918,110350.0,110340.0,9.119e-05]
[1747982959722,0.35466918,110350.0,110340.0,9.119e-05]
[1747982959926,0.36066918,110350.0,110340.0,9.119e-05]
[1747982960843,0.36466918,110350.0,110340.0,9.119e-05]
[1747982962107,0.32054897,110350.0,110340.0,9.119e-05]
[1747982963238,0.35324897,110350.0,110340.0,9.119e-05]
[1747982963938,0.35324897,110350.0,110340.0,0.27173119]
[1747982964935,0.35324897,110350.0,110340.0,9.119e-05]
[1747982965148,0.35324897,110350.0,110340.0,0.27173119]
[1747982966949,0.35324897,110350.0,110340.0,9.119e-05]
[1747982967177,0.35324897,110350.0,110340.0,0.65241119]
[1747982968960,0.28984897,110350.0,110340.0,0.65241119]
[1747982969176,0.28984897,110350.0,110340.0,9.119e-05]
[1747982969373,0.35154897,110350.0,110340.0,0.65241119]
[1747982970331,0.35154897,110350.0,110340.0,0.99241119]
[1747982973818,0.35154897,110350.0,110340.0,0.34009119]
[1747982974026,0.35154897,110350.0,110340.0,0.99241119]
[1747982975434,0.35154897,110350.0,110340.0,0.65241119]
[1747982978407,0.35154897,110350.0,110340.0,0.38077119]
[1747982978824,0.35154897,110350.0,110340.0,0.65241119]
[1747982983367,0.35154897,110350.0,110340.0,9.119e-05]
[1747982983572,0.35154897,110350.0,110340.0,0.27173119]
[1747982986580,0.32124897,110350.0,110340.0,0.27173119]
[1747982987454,0.28984897,110350.0,110340.0,0.27173119]
[1747982990787,0.28984897,110350.0,110340.0,0.61173119]
[1747982991004,0.28984897,110350.0,110340.0,0.62763119]
[1747982991262,0.28984897,110350.0,110340.0,0.63233119]
[1747982991454,0.28984897,110350.0,110340.0,0.61173119]
[1747982991825,0.28384897,110350.0,110340.0,0.61173119]
[1747982992029,0.28884897,110350.0,110340.0,0.61173119]
[1747982993289,0.28484897,110350.0,110340.0,0.61173119]
[1747982993491,0.28784897,110350.0,110340.0,0.61173119]
[1747982995331,0.28784897,110350.0,110340.0,0.62763119]
[1747982995595,0.28784897,110350.0,110340.0,0.61173119]
[1747982995882,0.28784897,110350.0,110340.0,0.27173119]
[1747982996993,0.28784897,110350.0,110340.0,0.97183919]
[1747982997206,0.28784897,110350.0,110340.0,0.98773919]
[1747982997415,0.28784897,110350.0,110340.0,1.31183919]
[1747982997830,0.28784897,110350.0,110340.0,1.32773919]
[1747982998443,0.19830341,110350.0,110340.0,1.33243919]
[1747982998797,0.21642623,110350.0,110340.0,1.73370004]
[1747982998999,0.22548814,110350.0,110340.0,1.73370004]
[1747982999124,0.20236523,110350.0,110340.0,1.73370004]
[1747982999532,0.19936523,110350.0,110340.0,1.73370004]
[1747982999975,0.20136523,110350.0,110340.0,1.73370004]
[1747983000588,0.20436523,110350.0,110340.0,1.73370004]
[1747983001163,0.20236523,110350.0,110340.0,1.73470004]
[1747983001578,0.20436523,110350.0,110340.0,1.73470004]
[1747983008069,0.20436523,110350.0,110340.0,1.46310004]
[1747983008257,0.20436523,110350.0,110340.0,1.44855919]
[1747983008522,0.20436523,110350.0,110340.0,1.71533919]
[1747983008725,0.20436523,110350.0,110340.0,1.72003919]
[1747983009689,0.20436523,110350.0,110340.0,1.502377]
[1747983012131,0.20436523,110350.0,110340.0,0.823537]
[1747983012295,0.26696523,110350.0,110340.0,1.481777]
[1747983012912,0.23486523,110350.0,110340.0,1.481777]
[1747983013897,0.26786523,110350.0,110340.0,0.823537]
[1747983014155,0.35741079,110350.0,110340.0,0.38712]
[1747983014360,0.35741079,110350.0,110340.0,0.65868]
[1747983014561,0.35741079,110350.0,110340.0,0.99868]
[1747983015225,0.35741079,110350.0,110340.0,0.38712]
[1747983015433,0.35741079,110350.0,110340.0,0.99868]
[1747983016498,0.35441079,110350.0,110340.0,1.480217]
[1747983016700,0.35441079,110350.0,110340.0,1.481217]
[1747983016901,0.35741079,110350.0,110340.0,1.481217]
[1747983017175,0.32441079,110350.0,110340.0,1.481217]
[1747983017380,0.20436523,110350.0,110340.0,1.481217]
[1747983017795,0.20236523,110350.0,110340.0,1.481217]
[1747983018174,0.20536523,110350.0,110340.0,1.481217]
[1747983018595,0.20536523,110350.0,110340.0,1.497117]
[1747983018799,0.19630341,110350.0,110340.0,1.501817]
[1747983019547,0.1872415,110350.0,110340.0,1.501817]
[1747983024191,0.1872415,110350.0,110340.0,1.497117]
[1747983025495,0.2053654,110350.0,110340.0,1.497117]
[1747983025708,0.2053654,110350.0,110340.0,1.67837493]
[1747983025917,0.21442706,110350.0,110340.0,1.501817]
[1747983026481,0.21442706,110350.0,110340.0,1.51087989]
[1747983026681,0.21442706,110350.0,110340.0,1.501817]
[1747983026891,0.2053654,110350.0,110340.0,1.501817]
[1747983027545,0.19630349,110350.0,110340.0,1.501817]
[1747983028108,0.19630349,110350.0,110340.0,1.230257]
[1747983028428,0.19630349,110350.0,110340.0,1.497117]
[1747983028994,0.19630349,110350.0,110340.0,1.501817]
[1747983029204,0.20536523,110350.0,110340.0,1.5199427]
[1747983029402,0.20536523,110350.0,110340.0,1.51087989]
[1747983029647,0.20536523,110350.0,110340.0,1.5199427]
[1747983029821,0.20536523,110350.0,110340.0,1.51087989]
[1747983030023,0.20536523,110350.0,110340.0,1.5199427]
[1747983030264,0.20536523,110350.0,110340.0,1.52900543]
[1747983030420,0.20236523,110350.0,110340.0,1.5189427]
[1747983030624,0.19936523,110350.0,110340.0,1.70020063]
[1747983030827,0.20236523,110350.0,110340.0,2.10126328]
[1747983031026,0.20236474,110350.0,110340.0,2.10126328]
[1747983031227,0.18122508,110360.0,110340.0,2.10126328]
[1747983031228,0.00906076,110360.0,110350.0,0.55996507]
[1747983031515,0.00906076,110360.0,110350.0,0.56902657]
[1747983031516,0.01812127,110360.0,110350.0,0.56902657]
[1747983031727,0.03624352,110360.0,110350.0,1.05156365]
[1747983031938,0.2174686,110360.0,110350.0,1.04250207]
[1747983032406,0.2174686,110360.0,110350.0,1.04250215]
[1747983032614,0.22046843,110360.0,110350.0,1.04350215]
[1747983032798,0.2295296,110360.0,110350.0,1.04250215]
[1747983032996,0.22446958,110360.0,110350.0,1.04350215]
[1747983033193,0.21540833,110360.0,110350.0,1.05256365]
[1747983033406,0.22446958,110360.0,110350.0,0.839437]
[1747983033600,0.2023475,110360.0,110350.0,0.822537]
[1747983033833,0.2043475,110360.0,110350.0,0.823537]
[1747983033968,0.2063475,110360.0,110350.0,0.824537]
[1747983034169,0.2063475,110360.0,110350.0,0.83359907]
[1747983034767,0.2063475,110360.0,110350.0,1.49123907]
[1747983035141,0.2063475,110360.0,110350.0,1.482177]
[1747983035267,0.19728633,110360.0,110350.0,1.498077]
[1747983035475,0.19728633,110360.0,110350.0,1.50713907]
[1747983035660,0.19728633,110360.0,110350.0,1.49123907]
[1747983036412,0.19728633,110360.0,110350.0,1.482177]
[1747983036532,0.19728633,110360.0,110350.0,1.49123899]
[1747983038717,0.19728633,110360.0,110350.0,1.5003009]
[1747983039091,0.19728633,110360.0,110350.0,1.69060422]
[1747983039293,0.20634733,110360.0,110350.0,1.69966596]
[1747983039917,0.20634733,110360.0,110350.0,1.6815424]
[1747983040117,0.20634733,110360.0,110350.0,1.67248049]
[1747983040340,0.19728633,110360.0,110350.0,1.49123907]
[1747983042282,0.19728633,110360.0,110350.0,1.6906043]
[1747983042456,0.03418284,110360.0,110350.0,1.6906043]
[1747983042651,0.22446909,110360.0,110350.0,1.6906043]
[1747983042786,0.21540833,110360.0,110350.0,0.824537]
[1747983042993,0.25868625,110360.0,110350.0,1.482137]
[1747983043411,0.25868625,110360.0,110350.0,1.49119907]
[1747983043611,0.25868625,110360.0,110350.0,1.50026106]
[1747983043836,0.25868625,110360.0,110350.0,1.69056438]
[1747983044238,0.25868625,110360.0,110350.0,1.69962612]
[1747983045651,0.19728625,110360.0,110350.0,1.69962612]
[1747983046637,0.22858625,110360.0,110350.0,1.69056438]
[1747983046995,0.05642209,110360.0,110350.0,1.7039058]
[1747983047212,0.06548334,110360.0,110350.0,1.6948443]
[1747983047387,0.05642209,110360.0,110350.0,1.70938515]
[1747983047610,0.2063475,110360.0,110350.0,1.50095785]
[1747983047795,0.2705475,110360.0,110350.0,1.50095785]
[1747983049278,0.2705475,110360.0,110350.0,1.214937]
[1747983049490,0.2705475,110360.0,110350.0,1.265857]
[1747983049700,0.43224639,110360.0,110350.0,0.78332]
[1747983049915,0.43224639,110360.0,110350.0,1.0548]
[1747983050120,0.36009306,110360.0,110350.0,1.0548]
[1747983050351,0.36009306,110360.0,110350.0,1.3948]
[1747983050620,0.35809306,110360.0,110350.0,1.3938]
[1747983050770,0.35809306,110360.0,110350.0,1.876337]
[1747983051601,0.35309306,110360.0,110350.0,1.875337]
[1747983051828,0.35509306,110360.0,110350.0,1.876337]
[1747983052034,0.35809306,110360.0,110350.0,1.877337]
[1747983052290,0.35609306,110360.0,110350.0,1.876337]
[1747983052436,0.35309306,110360.0,110350.0,1.875337]
[1747983052995,0.35609306,110360.0,110350.0,1.877337]
[1747983058420,0.35609306,110360.0,110350.0,1.215457]
[1747983058608,0.35609306,110360.0,110350.0,1.877457]
[1747983059638,0.35609306,110360.0,110350.0,1.82150735]
[1747983060084,0.35609306,110360.0,110350.0,1.15950735]
[1747983060212,0.35609306,110360.0,110330.0,0.02]
[1747983060213,0.25540341,110350.0,110340.0,0.39048]
[1747983060417,0.34494897,110350.0,110340.0,0.662]
[1747983061426,0.34694897,110350.0,110340.0,1.003]
[1747983061837,0.34594897,110350.0,110340.0,1.003]
[1747983062035,0.34594897,110350.0,110340.0,1.002]
[1747983062233,0.34794897,110350.0,110340.0,1.003]
[1747983062470,0.35094897,110350.0,110340.0,1.004]
[1747983062759,0.34794897,110350.0,110340.0,1.002]
[1747983062918,0.34794897,110350.0,110340.0,1.00204]
[1747983063130,0.35194897,110350.0,110340.0,1.00304]
[1747983063549,0.35194897,110350.0,110340.0,1.00404]
[1747983063746,0.35594897,110350.0,110340.0,1.00404]
[1747983065601,0.35594897,110350.0,110340.0,0.73248]
[1747983065722,0.35594897,110350.0,110340.0,1.00404]
[1747983067207,0.35594897,110350.0,110340.0,1.00408]
[1747983067937,0.35594897,110350.0,110340.0,0.66408]
[1747983068436,0.35594897,110350.0,110340.0,0.39252]
[1747983068645,0.35594897,110350.0,110340.0,0.66408]
[1747983070740,0.35594897,110350.0,110340.0,0.002]
[1747983070961,0.35594897,110350.0,110340.0,0.2736]
[1747983071807,0.25282066,110340.0,110330.0,0.39061117]
[1747983072063,0.25282066,110340.0,110330.0,0.87314817]
[1747983072375,0.02718827,110340.0,110330.0,1.081613]
[1747983072580,0.2084462,110340.0,110330.0,1.09067655]
[1747983072792,0.01812521,110340.0,110330.0,1.08161267]
[1747983073009,0.20844603,110340.0,110330.0,1.0725497]
[1747983073207,0.20844603,110340.0,110330.0,1.35321308]
[1747983073358,0.21144603,110340.0,110330.0,1.35421308]
[1747983073571,0.22050818,110340.0,110330.0,1.37011308]
[1747983073743,0.04225025,110340.0,110330.0,1.71111308]
[1747983073921,0.03318736,110340.0,110330.0,1.7201763]
[1747983074132,0.03318719,110340.0,110330.0,1.72923944]
[1747983074339,0.04224992,110340.0,110330.0,1.7201763]
[1747983074542,0.03318711,110340.0,110330.0,1.72923944]
[1747983074793,0.04224976,110340.0,110330.0,1.72923944]
[1747983074990,0.04224967,110340.0,110330.0,1.72923944]
[1747983075396,0.03318744,110340.0,110330.0,1.72923944]
[1747983075763,0.04225025,110340.0,110330.0,1.72923944]
[1747983076156,0.02412471,110340.0,110330.0,1.72923944]
[1747983076777,0.02412463,110340.0,110330.0,1.73593944]
[1747983077616,0.01206215,110340.0,110330.0,1.83902585]
[1747983077829,0.03018686,110340.0,110330.0,1.83902585]
[1747983078045,0.03218686,110340.0,110330.0,1.84002585]
[1747983078370,0.02312438,110340.0,110330.0,1.84002585]
[1747983078579,0.005,110340.0,110330.0,1.84002585]
[1747983079002,0.08868293,110360.0,110350.0,0.19936523]